fUSD/lending_fUSD_20251120
["ID","MTS","AMOUNT","RATE_DAILY","PERIOD"]
[394471583,1763615439603,-500.0,0.00016731,2]
[394471584,1763615439612,-487.99564224,0.00016731,2]
[394471585,1763615439621,-342.04966641,0.00016731,2]
[394471586,1763615439630,-500.0,0.00016731,2]
[394471587,1763615439640,-237.51962489,0.00016731,2]
[394471588,1763615439650,-500.0,0.00016731,2]
[394471589,1763615439659,-500.0,0.00016731,2]
[394471590,1763615439668,-500.0,0.00016731,2]
[394471591,1763615439677,-500.0,0.00016731,2]
[394471592,1763615439686,-210.17949036,0.00016731,2]
[394471593,1763615439695,-500.0,0.00016731,2]
[394471594,1763615439705,-500.0,0.00016731,2]
[394471595,1763615439714,-500.0,0.00016731,2]
[394471596,1763615439722,-252.15600744,0.00016731,2]
[394471597,1763615439732,-230.33836414,0.00016731,2]
[394471598,1763615439741,-412.24216559,0.00016731,2]
[394471599,1763615439751,-509.26189739,0.00016731,2]
[394471600,1763615439760,-500.0,0.00016731,2]
[394471601,1763615439770,-500.0,0.00016731,2]
[394471602,1763615439779,-500.0,0.00016731,2]
[394471603,1763615439787,-500.0,0.00016731,2]
[394471604,1763615439796,-500.0,0.00016731,2]
[394471605,1763615439805,-500.0,0.00016731,2]
[394471606,1763615439815,-500.0,0.00016731,2]
[394471607,1763615439824,-500.0,0.00016731,2]
[394471608,1763615439834,-500.0,0.00016731,2]
[394471609,1763615439843,-725.63,0.00016731,2]
[394471610,1763615439851,-725.63,0.00016731,2]
[394471611,1763615439860,-725.63,0.00016731,2]
[394471612,1763615439869,-500.0,0.00016731,2]
[394471613,1763615439878,-343.05869735,0.00016731,2]
[394471614,1763615439886,-500.0,0.00016731,2]
[394471615,1763615439895,-1716.21,0.00016731,2]
[394471616,1763615439904,-559.9913347,0.00016731,2]
[394471617,1763615439913,-500.0,0.00016731,2]
[394471618,1763615439922,-226.98911699,0.00016731,2]
[394471619,1763615439931,-500.0,0.00016731,2]
[394471620,1763615439940,-500.0,0.00016731,2]
[394471621,1763615439949,-500.0,0.00016731,2]
[394471622,1763615439958,-500.0,0.00016731,2]
[394471623,1763615439967,-500.0,0.00016731,2]
[394471624,1763615439976,-500.0,0.00016731,2]
[394471625,1763615439985,-500.0,0.00016731,2]
[394471626,1763615439994,-500.0,0.00016731,2]
[394471627,1763615440003,-500.0,0.00016731,2]
[394471628,1763615440013,-500.0,0.00016731,2]
[394471629,1763615440022,-500.0,0.00016731,2]
[394471630,1763615440031,-500.0,0.00016731,2]
[394471631,1763615440041,-4570.4546,0.00016733,2]
[394471632,1763615440051,-1000.0,0.00016733,2]
[394471633,1763615440060,-150.0,0.0001674,2]
[394471634,1763615440070,-500.0,0.00016773,2]
[394471635,1763615440079,-502.49968181,0.00016773,2]
[394471636,1763615440091,-500.0,0.00016773,2]
[394471637,1763615440100,-500.0,0.00016773,2]
[394471638,1763615440109,-500.0,0.00016773,2]
[394471639,1763615440118,-500.0,0.00016773,2]
[394471640,1763615440127,-233.80263823,0.00016773,2]
[394471641,1763615440136,-528.66874739,0.00016773,2]
[394471642,1763615440145,-500.0,0.00016773,2]
[394471643,1763615440154,-500.0,0.00016773,2]
[394471644,1763615440164,-500.0,0.00016773,2]
[394471645,1763615440172,-500.0,0.00016773,2]
[394471646,1763615440181,-545.35966413,0.00016773,2]
[394471647,1763615440191,-500.0,0.00016773,2]
[394471648,1763615440200,-500.0,0.00016773,2]
[394471649,1763615440209,-161.63326718,0.00016773,2]
[394471650,1763615440219,-505.79146807,0.00016773,2]
[394471651,1763615440228,-500.0,0.00016773,2]
[394471652,1763615440237,-512.45647395,0.00016773,2]
[394471653,1763615440246,-500.0,0.00016773,2]
[394471654,1763615440255,-500.0,0.00016773,2]
[394471655,1763615440265,-468.8415485,0.00016773,2]
[394471656,1763615440278,-500.0,0.00016773,2]
[394471657,1763615440287,-500.68799219,0.00016773,2]
[394471658,1763615440296,-500.0,0.00016773,2]
[394471659,1763615440305,-164.96699005,0.00016773,2]
[394471660,1763615440314,-500.0,0.00016773,2]
[394471661,1763615440324,-500.0,0.00016773,2]
[394471662,1763615440333,-500.7937568,0.00016773,2]
[394471663,1763615440343,-500.0,0.00016773,2]
[394471664,1763615440352,-500.0,0.00016773,2]
[394471665,1763615440362,-506.72048144,0.00016773,2]
[394471666,1763615440371,-930.23869138,0.00016774,2]
[394471667,1763615440380,-12067.80747519,0.00016774,2]
[394471668,1763615440389,-15597.49607655,0.00016774,2]
[394471669,1763615440398,-2500.0,0.00016776,2]
[394471670,1763615440407,-2500.0,0.00016776,2]
[394471671,1763615440417,-150.0,0.000168,2]
[394471672,1763615440426,-150.0,0.000168,2]
[394471673,1763615440435,-150.0,0.000168,2]
[394471674,1763615440445,-150.0,0.000168,2]
[394471675,1763615440454,-150.0,0.000168,2]
[394471676,1763615440464,-150.0,0.000168,2]
[394471677,1763615440476,-150.0,0.000168,2]
[394471678,1763615440485,-520.84673959,0.00016832,2]
[394471679,1763615440495,-500.0,0.00016832,2]
[394471680,1763615440504,-500.0,0.00016832,2]
[394471681,1763615440513,-442.6,0.00016832,2]
[394471682,1763615440522,-500.0,0.00016832,2]
[394471683,1763615440531,-266.93,0.00016851,2]
[394471684,1763615440540,-150.0,0.00016886,2]
[394471685,1763615440549,-500.0,0.00016914,2]
[394471686,1763615440559,-930.23869138,0.00016915,2]
[394471687,1763615440568,-12067.80747519,0.00016915,2]
[394471688,1763615440577,-15597.49607655,0.00016915,2]
[394471690,1763615440587,-150.0,0.0001692,2]
[394471692,1763615440596,-150.0,0.0001692,2]
[394471693,1763615440605,-1536.98,0.00016922,2]
[394471694,1763615440615,-422.17,0.00016922,2]
[394471695,1763615440623,-9343.52,0.00016922,2]
[394471696,1763615440632,-9999.99,0.00016922,2]
[394471697,1763615440642,-1170.42,0.00016922,2]
[394471698,1763615440651,-1987.46,0.00016922,2]
[394471699,1763615440661,-999.99,0.00016922,2]
[394471700,1763615440674,-499.99,0.00016922,2]
[394471701,1763615440682,-12039.59,0.00016922,2]
[394471702,1763615440691,-9999.99,0.00016922,2]
[394471703,1763615440700,-9999.99,0.00016922,2]
[394471704,1763615440709,-9999.99,0.00016922,2]
[394471705,1763615440718,-9999.99,0.00016922,2]
[394471706,1763615440727,-150.99,0.00016922,2]
[394471707,1763615440737,-150.99,0.00016922,2]
[394471708,1763615440746,-196.9,0.00016933,2]
[394471709,1763615440756,-150.0,0.00016971,2]
[394471710,1763615440766,-150.0,0.00016971,2]
[394471711,1763615440775,-150.0,0.00017,2]
[394471712,1763615440784,-150.0,0.00017,2]
[394471713,1763615440794,-250.0,0.00017,2]
[394471714,1763615440803,-1716.21,0.00017005,2]
[394471715,1763615440812,-150.0,0.0001704,2]
[394471716,1763615440821,-475.11,0.00017041,2]
[394471717,1763615440830,-695.05,0.00017041,2]
[394471718,1763615440840,-930.23869138,0.00017055,2]
[394471719,1763615440848,-12067.80747519,0.00017055,2]
[394471720,1763615440858,-15597.49607655,0.00017055,2]
[394471721,1763615440869,-150.0,0.00017057,2]
[394471722,1763615440879,-880.24909891,0.00017079,2]
[394471723,1763615440888,-150.0,0.000171,2]
[394471724,1763615440897,-150.0,0.000171,2]
[394471725,1763615440906,-150.0,0.000171,2]
[394471726,1763615440915,-634.0,0.00017112,2]
[394471727,1763615440924,-1000.0,0.00017121,2]
[394471728,1763615440933,-1000.0,0.00017121,2]
[394471729,1763615440943,-150.0,0.00017143,2]
[394471730,1763615440952,-150.0,0.0001716,2]
[394471731,1763615440961,-150.0,0.00017178,2]
[394471732,1763615440971,-177.5,0.00017178,2]
[394471733,1763615440980,-302.22,0.00017178,2]
[394471734,1763615440989,-177.5,0.00017178,2]
[394471735,1763615440998,-831.31,0.00017178,2]
[394471736,1763615441007,-177.5,0.00017178,2]
[394471737,1763615441016,-177.5,0.00017178,2]
[394471738,1763615441025,-177.5,0.00017178,2]
[394471739,1763615441035,-930.23869138,0.00017196,2]
[394471740,1763615441044,-12067.80747519,0.00017196,2]
[394471741,1763615441054,-15597.49607655,0.00017196,2]
[394471742,1763615441063,-150.0,0.000172,2]
[394471743,1763615441075,-150.0,0.000172,2]
[394471744,1763615441086,-150.0,0.00017229,2]
[394471745,1763615441095,-150.0,0.00017229,2]
[394471746,1763615441105,-1716.21,0.00017279,2]
[394471747,1763615441114,-150.0,0.0001728,2]
[394471748,1763615441123,-150.0,0.0001728,2]
[394471749,1763615441132,-151.0,0.00017302,2]
[394471750,1763615441141,-151.0,0.00017303,2]
[394471751,1763615441151,-168.0,0.00017309,2]
[394471752,1763615441161,-150.0,0.00017314,2]
[394471753,1763615441170,-593.25505509,0.00017321,2]
[394471754,1763615441180,-1000.0,0.00017321,2]
[394471755,1763615441189,-1000.0,0.00017321,2]
[394471756,1763615441198,-1000.0,0.00017321,2]
[394471757,1763615441207,-503.07559405,0.00017321,2]
[394471758,1763615441216,-1000.0,0.00017321,2]
[394471759,1763615441226,-1000.0,0.00017321,2]
[394471760,1763615441235,-1000.0,0.00017321,2]
[394471761,1763615441244,-1000.0,0.00017321,2]
[394471762,1763615441253,-1000.0,0.00017321,2]
[394471763,1763615441262,-500.0,0.00017321,2]
[394471764,1763615441272,-930.23869138,0.00017337,2]
[394471765,1763615441285,-12067.80747519,0.00017337,2]
[394471766,1763615441294,-15597.49607655,0.00017337,2]
[394471767,1763615441304,-169.55,0.00017397,2]
[394471768,1763615441312,-169.55,0.00017397,2]
[394471769,1763615441321,-169.6,0.00017397,2]
[394471770,1763615441333,-168.0,0.000174,2]
[394471771,1763615441342,-150.0,0.000174,2]
[394471772,1763615441353,-150.0,0.000174,2]
[394471773,1763615441362,-150.0,0.000174,2]
[394471774,1763615441371,-150.0,0.000174,2]
[394471775,1763615441380,-150.0,0.000174,2]
[394471776,1763615441389,-150.0,0.000174,2]
[394471777,1763615441398,-150.0,0.000174,2]
[394471778,1763615441407,-500.0,0.00017409,2]
[394471779,1763615441416,-1319.0,0.0001741,2]
[394471780,1763615441425,-3434.0,0.0001741,2]
[394471781,1763615441434,-575.0,0.0001741,2]
[394471782,1763615441443,-609.784,0.0001741,2]
[394471783,1763615441615,-822.0,0.0001741,2]
[394471784,1763615441643,-1601.547,0.0001741,2]
[394471785,1763615441653,-798.021,0.0001741,2]
[394471786,1763615441664,-1256.0,0.0001741,2]
[394471787,1763615441673,-930.251,0.00017421,2]
[394471788,1763615441682,-1220.186,0.00017421,2]
[394471789,1763615441691,-561.0,0.00017421,2]
[394471790,1763615441701,-708.819,0.00017421,2]
[394471791,1763615441710,-1605.0,0.00017421,2]
[394471792,1763615441720,-150.0,0.0001746,2]
[394471793,1763615441729,-1820.68505313,0.00017468,2]
[394471794,1763615441738,-4374.0,0.00017477,2]
[394471795,1763615441748,-930.23869138,0.00017478,2]
[394471796,1763615441758,-12067.80747519,0.00017478,2]
[394471797,1763615441767,-15597.49607655,0.00017478,2]
[394471798,1763615441777,-150.0,0.00017485,2]
[394471799,1763615441786,-150.0,0.00017485,2]
[394471800,1763615441795,-500.0,0.00017485,2]
[394471801,1763615441804,-150.0,0.00017485,2]
[394471802,1763615441814,-500.0,0.00017485,2]
[394471803,1763615441823,-150.0,0.00017485,2]
[394471804,1763615441833,-254.55994729,0.00017485,2]
[394471805,1763615441842,-500.0,0.00017485,2]
[394471806,1763615441851,-150.0,0.00017485,2]
[394471807,1763615441861,-500.0,0.00017485,2]
[394471808,1763615441870,-152.80453458,0.00017485,2]
[394471809,1763615441881,-150.0,0.00017485,2]
[394471810,1763615441891,-151.25115773,0.00017485,2]
[394471811,1763615441900,-150.0,0.00017485,2]
[394471812,1763615441910,-150.0,0.00017485,2]
[394471813,1763615441919,-500.0,0.00017485,2]
[394471814,1763615441929,-151.40528151,0.00017485,2]
[394471815,1763615441938,-500.0,0.00017485,2]
[394471816,1763615441947,-500.0,0.00017485,2]
[394471817,1763615441957,-152.0214574,0.00017485,2]
[394471818,1763615441966,-500.0,0.00017485,2]
[394471819,1763615441976,-663.0,0.00017485,2]
[394471820,1763615441986,-150.0,0.00017485,2]
[394471821,1763615441995,-500.0,0.00017485,2]
[394471822,1763615442004,-500.0,0.00017485,2]
[394471823,1763615442013,-500.0,0.00017485,2]
[394471824,1763615442023,-150.0,0.00017485,2]
[394471825,1763615442032,-500.0,0.00017485,2]
[394471826,1763615442042,-150.0,0.00017485,2]
[394471827,1763615442051,-500.0,0.00017485,2]
[394471828,1763615442061,-484.0,0.00017485,2]
[394471829,1763615442070,-150.0,0.00017485,2]
[394471830,1763615442079,-500.0,0.00017485,2]
[394471831,1763615442090,-150.0,0.00017485,2]
[394471832,1763615442099,-512.0,0.00017485,2]
[394471833,1763615442109,-469.0,0.00017485,2]
[394471834,1763615442118,-500.0,0.00017485,2]
[394471835,1763615442127,-150.0,0.00017485,2]
[394471836,1763615442137,-500.0,0.00017485,2]
[394471837,1763615442146,-500.0,0.00017485,2]
[394471838,1763615442156,-500.0,0.00017485,2]
[394471839,1763615442165,-150.0,0.00017485,2]
[394471840,1763615442175,-500.0,0.00017485,2]
[394471841,1763615442185,-150.0,0.00017485,2]
[394471842,1763615442194,-500.0,0.00017485,2]
[394471843,1763615442204,-500.0,0.00017485,2]
[394471844,1763615442213,-500.0,0.00017485,2]
[394471845,1763615442223,-500.0,0.00017485,2]
[394471846,1763615442233,-500.0,0.00017485,2]
[394471847,1763615442242,-438.44355764,0.00017485,2]
[394471848,1763615442252,-500.0,0.00017485,2]
[394471849,1763615442261,-150.0,0.00017485,2]
[394471850,1763615442271,-500.0,0.00017485,2]
[394471851,1763615442285,-150.0,0.00017486,2]
[394471852,1763615442295,-150.0,0.00017486,2]
[394471853,1763615442304,-962.2583,0.00017495,2]
[394471854,1763615442314,-3200.0,0.000175,6]
[394471855,1763615442323,-500.0,0.00017512,2]
[394471856,1763615442333,-152.03937927,0.00017512,2]
[394471857,1763615442342,-150.0,0.00017512,2]
[394471858,1763615442354,-500.0,0.00017512,2]
[394471859,1763615442363,-151.45128468,0.00017512,2]
[394471860,1763615442373,-500.0,0.00017512,2]
[394471861,1763615442382,-150.0,0.00017512,2]
[394471862,1763615442391,-500.0,0.00017512,2]
[394471863,1763615442401,-150.0,0.00017512,2]
[394471864,1763615442410,-500.0,0.00017512,2]
[394471865,1763615442419,-150.0,0.00017512,2]
[394471866,1763615442429,-150.0,0.00017512,2]
[394471867,1763615442438,-150.0,0.00017512,2]
[394471868,1763615442447,-553.23059072,0.00017512,2]
[394471869,1763615442456,-500.0,0.00017512,2]
[394471870,1763615442466,-500.0,0.00017512,2]
[394471871,1763615442475,-500.0,0.00017512,2]
[394471872,1763615442485,-663.0,0.00017512,2]
[394471873,1763615442493,-150.0,0.00017512,2]
[394471874,1763615442504,-500.0,0.00017512,2]
[394471875,1763615442513,-500.0,0.00017512,2]
[394471876,1763615442523,-500.0,0.00017512,2]
[394471877,1763615442532,-500.0,0.00017512,2]
[394471878,1763615442541,-500.0,0.00017512,2]
[394471879,1763615442551,-484.0,0.00017512,2]
[394471880,1763615442560,-500.0,0.00017512,2]
[394471881,1763615442569,-512.0,0.00017512,2]
[394471882,1763615442578,-469.0,0.00017512,2]
[394471883,1763615442589,-500.0,0.00017512,2]
[394471884,1763615442598,-150.0,0.00017512,2]
[394471885,1763615442607,-500.0,0.00017512,2]
[394471886,1763615442617,-500.0,0.00017512,2]
[394471887,1763615442626,-500.0,0.00017512,2]
[394471888,1763615442636,-150.0,0.00017512,2]
[394471889,1763615442645,-500.0,0.00017512,2]
[394471890,1763615442655,-218.12232883,0.00017512,2]
[394471891,1763615442664,-500.0,0.00017512,2]
[394471892,1763615442674,-150.0,0.00017512,2]
[394471893,1763615442683,-500.0,0.00017512,2]
[394471894,1763615442693,-150.0,0.0001752,2]
[394471895,1763615442702,-150.0,0.0001754,2]
[394471896,1763615442711,-500.0,0.0001754,2]
[394471897,1763615442721,-500.0,0.0001754,2]
[394471898,1763615442730,-150.0,0.0001754,2]
[394471899,1763615442739,-500.0,0.0001754,2]
[394471900,1763615442748,-150.0,0.0001754,2]
[394471902,1763615442757,-231.28870318,0.0001754,2]
[394471903,1763615442766,-150.0,0.0001754,2]
[394471904,1763615442775,-150.0,0.0001754,2]
[394471905,1763615442784,-150.0,0.0001754,2]
[394471906,1763615442793,-500.0,0.0001754,2]
[394471907,1763615442802,-500.0,0.0001754,2]
[394471908,1763615442812,-500.0,0.0001754,2]
[394471909,1763615442821,-663.0,0.0001754,2]
[394471910,1763615442831,-150.0,0.0001754,2]
[394471911,1763615442841,-500.0,0.0001754,2]
[394471912,1763615442850,-500.0,0.0001754,2]
[394471913,1763615442860,-500.0,0.0001754,2]
[394471914,1763615442869,-500.0,0.0001754,2]
[394471915,1763615442878,-500.0,0.0001754,2]
[394471916,1763615442887,-484.0,0.0001754,2]
[394471917,1763615442896,-500.0,0.0001754,2]
[394471918,1763615442906,-512.0,0.0001754,2]
[394471919,1763615442915,-469.0,0.0001754,2]
[394471920,1763615442924,-360.15703236,0.0001754,2]
[394471921,1763615442934,-150.0,0.0001754,2]
[394471922,1763615442943,-216.44084954,0.0001754,2]
[394471923,1763615442952,-500.0,0.0001754,2]
[394471924,1763615442962,-500.0,0.0001754,2]
[394471925,1763615442971,-150.0,0.0001754,2]
[394471926,1763615442981,-500.0,0.0001754,2]
[394471927,1763615442990,-454.41316794,0.0001754,2]
[394471928,1763615443000,-150.0,0.0001754,2]
[394471929,1763615443009,-500.0,0.0001754,2]
[394471930,1763615443019,-1716.21,0.00017553,2]
[394471931,1763615443028,-150.0,0.00017567,2]
[394471932,1763615443038,-524.03996946,0.00017567,2]
[394471933,1763615443048,-315.67396154,0.00017567,2]
[394471934,1763615443057,-186.39397685,0.00017567,2]
[394471935,1763615443067,-500.0,0.00017567,2]
[394471936,1763615443076,-150.0,0.00017567,2]
[394471937,1763615443087,-150.0,0.00017567,2]
[394471938,1763615443096,-243.69062188,0.00017567,2]
[394471939,1763615443106,-216.82890948,0.00017567,2]
[394471940,1763615443115,-500.0,0.00017567,2]
[394471941,1763615443125,-500.0,0.00017567,2]
[394471942,1763615443134,-500.0,0.00017567,2]
[394471943,1763615443144,-663.0,0.00017567,2]
[394471944,1763615443154,-150.0,0.00017567,2]
[394471945,1763615443163,-500.0,0.00017567,2]
[394471946,1763615443173,-500.0,0.00017567,2]
[394471947,1763615443183,-500.0,0.00017567,2]
[394471948,1763615443192,-500.0,0.00017567,2]
[394471949,1763615443201,-500.0,0.00017567,2]
[394471950,1763615443211,-484.0,0.00017567,2]
[394471951,1763615443220,-345.96397273,0.00017567,2]
[394471952,1763615443230,-512.0,0.00017567,2]
[394471953,1763615443239,-469.0,0.00017567,2]
[394471954,1763615443248,-154.66376572,0.00017567,2]
[394471955,1763615443258,-500.0,0.00017567,2]
[394471956,1763615443268,-419.39129392,0.00017567,2]
[394471957,1763615443281,-150.0,0.00017567,2]
[394471958,1763615443291,-500.0,0.00017567,2]
[394471959,1763615443301,-204.42568099,0.00017567,2]
[394471960,1763615443310,-500.0,0.00017567,2]
[394471961,1763615443320,-150.0,0.00017571,2]
[394471962,1763615443329,-880.24909891,0.00017577,2]
[394471963,1763615443338,-634.0,0.00017591,2]
[394471964,1763615443347,-202.8,0.00017591,2]
[394471965,1763615443357,-156.05141488,0.00017595,2]
[394471966,1763615443366,-230.64385222,0.00017595,2]
[394471967,1763615443375,-204.80203787,0.00017595,2]
[394471968,1763615443385,-252.43090638,0.00017595,2]
[394471969,1763615443404,-500.0,0.00017595,2]
[394471970,1763615443424,-252.90896659,0.00017595,2]
[394471971,1763615443435,-500.0,0.00017595,2]
[394471972,1763615443445,-663.0,0.00017595,2]
[394471973,1763615443455,-165.80212459,0.00017595,2]
[394471974,1763615443464,-500.0,0.00017595,2]
[394471975,1763615443474,-500.0,0.00017595,2]
[394471976,1763615443483,-500.0,0.00017595,2]
[394471977,1763615443493,-500.0,0.00017595,2]
[394471978,1763615443502,-290.4367874,0.00017595,2]
[394471979,1763615443511,-484.0,0.00017595,2]
[394471980,1763615443520,-512.0,0.00017595,2]
[394471981,1763615443529,-469.0,0.00017595,2]
[394471982,1763615443538,-500.0,0.00017595,2]
[394471983,1763615443547,-155.09276984,0.00017595,2]
[394471984,1763615443556,-500.0,0.00017595,2]
[394471985,1763615443566,-500.0,0.00017595,2]
[394471986,1763615443575,-150.0,0.00017595,2]
[394471987,1763615443586,-260.0,0.00017595,2]
[394471988,1763615443595,-150.0,0.00017595,2]
[394471989,1763615443604,-150.0,0.00017595,2]
[394471990,1763615443613,-150.0,0.00017595,2]
[394471991,1763615443622,-150.0,0.00017595,2]
[394471992,1763615443632,-150.0,0.00017595,2]
[394471993,1763615443641,-150.0,0.00017595,2]
[394471994,1763615443651,-150.0,0.00017595,2]
[394471995,1763615443660,-150.0,0.00017595,2]
[394471996,1763615443669,-150.0,0.000176,2]
[394471997,1763615443679,-150.0,0.000176,2]
[394471998,1763615443688,-600.0,0.000176,6]
[394471999,1763615443697,-150.0,0.0001761,2]
[394472000,1763615443706,-150.0,0.00017611,2]
[394472001,1763615443715,-930.23869138,0.00017618,2]
[394472002,1763615443724,-12067.80747519,0.00017618,2]
[394472003,1763615443733,-15597.49607655,0.00017618,2]
[394472004,1763615443743,-650.0,0.0001762,2]
[394472005,1763615443752,-500.0,0.00017622,2]
[394472006,1763615443761,-500.0,0.00017622,2]
[394472007,1763615443770,-663.0,0.00017622,2]
[394472008,1763615443780,-500.0,0.00017622,2]
[394472009,1763615443789,-500.0,0.00017622,2]
[394472010,1763615443799,-500.0,0.00017622,2]
[394472011,1763615443808,-500.0,0.00017622,2]
[394472012,1763615443817,-484.0,0.00017622,2]
[394472013,1763615443826,-512.0,0.00017622,2]
[394472014,1763615443836,-469.0,0.00017622,2]
[394472015,1763615443845,-500.0,0.00017622,2]
[394472016,1763615443855,-500.0,0.00017622,2]
[394472017,1763615443864,-500.0,0.00017622,2]
[394472018,1763615443874,-217.06647684,0.00017623,2]
[394472019,1763615443883,-166.64888722,0.00017628,2]
[394472020,1763615443892,-150.0,0.0001764,2]
[394472021,1763615443901,-150.0,0.0001764,2]
[394472022,1763615443910,-415.29645176,0.00017649,2]
[394472023,1763615443919,-500.0,0.00017649,2]
[394472024,1763615443928,-663.0,0.00017649,2]
[394472025,1763615443937,-422.04463779,0.00017649,2]
[394472026,1763615443946,-500.0,0.00017649,2]
[394472027,1763615443955,-500.0,0.00017649,2]
[394472028,1763615443964,-518.18578323,0.00017649,2]
[394472029,1763615443973,-484.0,0.00017649,2]
[394472030,1763615443983,-512.0,0.00017649,2]
[394472031,1763615444003,-469.0,0.00017649,2]
[394472032,1763615444012,-500.0,0.00017649,2]
[394472033,1763615444022,-186.51122994,0.00017649,2]
[394472034,1763615444032,-500.0,0.00017649,2]
[394472035,1763615444044,-150.0,0.00017657,2]
[394472036,1763615444054,-1500.0,0.00017668,2]
[394472037,1763615444063,-1500.0,0.00017668,2]
[394472038,1763615444072,-650.0,0.0001767,2]
[394472039,1763615444082,-500.0,0.00017677,2]
[394472040,1763615444092,-663.0,0.00017677,2]
[394472041,1763615444102,-500.0,0.00017677,2]
[394472042,1763615444111,-500.0,0.00017677,2]
[394472043,1763615444120,-484.0,0.00017677,2]
[394472044,1763615444129,-512.0,0.00017677,2]
[394472045,1763615444138,-469.0,0.00017677,2]
[394472046,1763615444147,-500.0,0.00017677,2]
[394472047,1763615444156,-500.0,0.00017677,2]
[394472048,1763615444165,-150.0,0.000177,2]
[394472049,1763615444174,-150.0,0.000177,2]
[394472050,1763615444182,-600.0,0.000177,6]
[394472051,1763615444192,-1464.75324384,0.00017702,2]
[394472052,1763615444201,-500.0,0.00017704,2]
[394472053,1763615444210,-663.0,0.00017704,2]
[394472054,1763615444219,-500.0,0.00017704,2]
[394472055,1763615444228,-500.0,0.00017704,2]
[394472056,1763615444238,-484.0,0.00017704,2]
[394472057,1763615444247,-512.0,0.00017704,2]
[394472058,1763615444256,-469.0,0.00017704,2]
[394472059,1763615444266,-500.0,0.00017704,2]
[394472060,1763615444278,-500.0,0.00017704,2]
[394472061,1763615444288,-420.0,0.00017707,2]
[394472062,1763615444298,-250.0,0.00017717,2]
[394472063,1763615444308,-2500.0,0.00017717,2]
[394472064,1763615444317,-300.0,0.00017717,2]
[394472065,1763615444327,-2463.85446164,0.00017717,4]
[394472066,1763615444336,-154.55748469,0.00017717,2]
[394472068,1763615444347,-250.0,0.00017717,2]
[394472069,1763615444357,-300.0,0.00017717,2]
[394472070,1763615444366,-300.0,0.00017717,2]
[394472071,1763615444375,-300.0,0.00017717,2]
[394472072,1763615444384,-300.0,0.00017717,2]
[394472073,1763615444393,-193.0,0.00017717,2]
[394472074,1763615444515,-2500.0,0.00017717,2]
[394472075,1763615444524,-250.0,0.00017717,2]
[394472076,1763615444533,-310.41371186,0.00017717,2]
[394472077,1763615444543,-5000.0,0.00017717,4]
[394472078,1763615444552,-193.0,0.00017717,2]
[394472079,1763615444561,-447.45530422,0.00017717,2]
[394472080,1763615444570,-2500.0,0.00017717,2]
[394472081,1763615444579,-150.0,0.00017717,2]
[394472082,1763615444588,-150.12675746,0.00017717,2]
[394472083,1763615444597,-500.0,0.00017727,2]
[394472084,1763615444606,-571.1,0.00017727,2]
[394472085,1763615444615,-725.63,0.00017727,2]
[394472086,1763615444624,-603.68373459,0.00017727,2]